bitfinex/quotes_BTCUSD_20220101
["timestamp","ask_amount","ask_price","bid_price","bid_amount"]
[1641020292007,0.00870128,47104.0,47103.0,0.0200714]
[1641020292405,0.00870128,47104.0,47103.0,0.04146218]
[1641020292608,0.06178928,47104.0,47103.0,0.02139078]
[1641020293665,0.11178928,47104.0,47102.0,2.17807566]
[1641020293870,1.31319983,47103.0,47102.0,0.01825974]
[1641020294067,0.43076119,47103.0,47102.0,0.01825974]
[1641020294366,0.43076119,47103.0,47102.0,0.03677405]
[1641020294566,0.43076119,47103.0,47102.0,0.01851431]
[1641020294767,0.53076118,47103.0,47102.0,0.01851431]
[1641020294967,0.00129684,47099.0,47098.0,0.16053456]
[1641020295368,1.33240605,47099.0,47098.0,0.16053456]
[1641020295568,1.43240605,47099.0,47098.0,0.16053456]
[1641020295768,0.72715972,47099.0,47098.0,0.16053456]
[1641020296371,0.74715121,47099.0,47098.0,0.16053456]
[1641020296570,0.88810076,47099.0,47098.0,0.16053456]
[1641020297211,0.78810076,47099.0,47098.0,0.16053456]
[1641020297410,0.90731,47099.0,47098.0,0.16053456]
[1641020297612,0.89592851,47099.0,47098.0,0.16053456]
[1641020298312,0.91761658,47099.0,47098.0,0.16053456]
[1641020298511,0.89840734,47099.0,47098.0,0.16053456]
[1641020299312,0.91974047,47099.0,47098.0,0.16053456]
[1641020299511,0.8980524,47099.0,47098.0,0.16053456]
[1641020300312,0.91696121,47099.0,47098.0,0.16053456]
[1641020300514,0.75467853,47099.0,47098.0,0.16053456]
[1641020301162,0.65467853,47099.0,47098.0,0.16053456]
[1641020301364,0.50322203,47099.0,47098.0,0.16053456]
[1641020302064,0.77980481,47099.0,47098.0,0.16053456]
[1641020302364,0.78058184,47099.0,47098.0,0.16053456]
[1641020303366,0.80197997,47099.0,47098.0,0.16053456]
[1641020303565,0.76279678,47099.0,47098.0,0.16053456]
[1641020305012,0.78128696,47099.0,47098.0,0.16053456]
[1641020305213,0.5028034,47099.0,47098.0,0.16053456]
[1641020305412,0.52265552,47099.0,47098.0,0.16053456]
[1641020305613,0.50416534,47099.0,47098.0,0.16053456]
[1641020306416,0.52492707,47099.0,47098.0,0.16053456]
[1641020306617,0.50507495,47099.0,47098.0,0.16053456]
[1641020307020,0.3641254,47099.0,47098.0,0.16053456]
[1641020307418,0.43430614,47099.0,47098.0,0.16053456]
[1641020307619,0.45493441,47099.0,47098.0,0.16053456]
[1641020308018,0.59588396,47099.0,47098.0,0.16053456]
[1641020308652,0.43475367,47099.0,47098.0,0.16053456]
[1641020309850,0.57570322,47099.0,47098.0,0.16053456]
[1641020311151,0.1,47099.0,47098.0,0.16053456]
[1641020311650,0.05,47099.0,47098.0,0.16053456]
[1641020312714,0.05,47099.0,47098.0,0.47028833]
[1641020312913,0.05,47099.0,47098.0,0.81041833]
[1641020313516,0.00861,47099.0,47098.0,0.81041833]
[1641020314514,0.00361,47099.0,47098.0,0.81041833]
[1641020315317,0.00361,47099.0,47098.0,0.16053456]
[1641020317184,0.00361,47099.0,47098.0,0.46470554]
[1641020317389,0.00361,47099.0,47098.0,0.80483554]
[1641020318185,0.00361,47099.0,47098.0,0.50066456]
[1641020319818,0.00361,47099.0,47098.0,0.16053456]
[1641020321620,0.00361,47099.0,47098.0,0.50066456]
[1641020323124,0.00361,47099.0,47098.0,0.16053456]
[1641020323574,0.06288496,47100.0,47098.0,0.16053456]
[1641020324871,0.23915487,47099.0,47098.0,0.16053456]
[1641020325073,0.33915487,47099.0,47098.0,0.16053456]
[1641020325672,0.07149496,47100.0,47098.0,0.16053456]
[1641020325971,0.07149496,47100.0,47099.0,0.33513]
[1641020327210,0.00979396,47100.0,47099.0,0.33513]
[1641020327411,0.00979396,47100.0,47099.0,0.59141039]
[1641020328813,0.00743396,47100.0,47099.0,0.59141039]
[1641020329213,0.00743396,47100.0,47099.0,0.69300793]
[1641020329415,0.00743396,47100.0,47099.0,0.592688]
[1641020332468,0.00743396,47100.0,47099.0,0.587688]
[1641020335222,0.00743396,47100.0,47099.0,0.33140761]
[1641020337525,0.00743396,47100.0,47099.0,0.32640761]
[1641020340072,0.00743396,47100.0,47099.0,0.62890723]
[1641020340874,0.00743396,47100.0,47099.0,0.32760879]
[1641020345415,0.0617,47101.0,47099.0,0.32760879]
[1641020346472,0.0617,47101.0,47100.0,0.38542835]
[1641020346669,0.0617,47101.0,47100.0,0.72555835]
[1641020348873,0.0617,47101.0,47099.0,0.00120118]
[1641020349075,0.2579763,47100.0,47098.0,0.16053456]
[1641020349273,0.0531,47099.0,47098.0,0.16053456]
[1641020349920,0.19404955,47099.0,47098.0,0.16053456]
[1641020350320,0.0531,47099.0,47098.0,0.16053456]
[1641020351721,0.30970825,47099.0,47098.0,0.16053456]
[1641020351921,0.30872402,47099.0,47098.0,0.16053456]
[1641020352723,0.0531,47099.0,47098.0,0.16053456]
[1641020352924,0.30960475,47099.0,47098.0,0.16053456]
[1641020353123,0.0531,47099.0,47098.0,0.16053456]
[1641020353323,0.30949681,47099.0,47098.0,0.16053456]
[1641020353575,0.0531,47099.0,47098.0,0.16053456]
[1641020353776,0.0731609,47099.0,47098.0,0.16053456]
[1641020354976,0.0531,47099.0,47098.0,0.16053456]
[1641020356479,0.06171,47099.0,47098.0,0.16053456]
[1641020358121,1.10171,47099.0,47098.0,0.15553456]
[1641020358325,1.21545299,47099.0,47098.0,0.15553456]
[1641020358521,1.31545299,47099.0,47098.0,0.15553456]
[1641020358720,1.31545299,47099.0,47098.0,0.15479536]
[1641020358923,1.31545299,47099.0,47094.0,0.00011]
[1641020358924,1.04,47098.0,47094.0,0.00011]
[1641020359124,1.045036,47094.0,47090.0,0.00022]
[1641020359322,1.045036,47090.0,47084.0,0.00044]
[1641020359520,1.045036,47087.0,47084.0,0.00044]
[1641020359723,1.18720196,47085.0,47084.0,0.00011]
[1641020359920,1.04,47083.0,47080.0,0.00055]
[1641020360127,1.51392318,47082.0,47081.0,0.00011]
[1641020360323,0.47392318,47082.0,47081.0,0.00011]
[1641020360621,0.67513677,47082.0,47081.0,0.00043865]
[1641020360822,1.0095355,47082.0,47081.0,0.00043865]
[1641020361272,0.68159787,47082.0,47081.0,0.00043865]
[1641020361471,1.11187387,47082.0,47081.0,0.00043865]
[1641020361669,1.01187387,47082.0,47081.0,0.00043865]
[1641020361869,1.05416702,47082.0,47081.0,0.00043865]
[1641020362974,1.05416702,47082.0,47061.0,0.00222]
[1641020362975,0.39943988,47064.0,47061.0,0.00222]
[1641020363176,0.39943988,47064.0,47040.0,0.82119]
[1641020363177,0.60685627,47055.0,47044.0,0.41822]
[1641020363370,0.60685627,47055.0,47030.0,7.2e-05]
[1641020363371,0.39078544,47031.0,47030.0,7.2e-05]
[1641020363572,0.45555544,47031.0,47030.0,7.2e-05]
[1641020363772,0.66780104,47031.0,47030.0,7.2e-05]
[1641020363968,0.95864059,47031.0,47030.0,7.2e-05]
[1641020364173,0.79725067,47031.0,47027.0,1.2053746]
[1641020364370,0.05318349,47030.0,47027.0,1.2023348]
[1641020364568,0.05307349,47030.0,47028.0,0.00096766]
[1641020364818,0.05307349,47030.0,47018.0,0.0999]
[1641020364819,0.42229865,47029.0,47018.0,0.0999]
[1641020365017,0.005036,47028.0,47018.0,0.0999]
[1641020365216,0.004596,47028.0,47022.0,0.00010955]
[1641020365617,0.00112497,47023.0,47022.0,0.00010955]
[1641020365816,0.004517,47022.0,47020.0,0.29594397]
[1641020366016,0.00112497,47023.0,47014.0,0.277744]
[1641020366017,0.00090497,47023.0,47014.0,0.277744]
[1641020366216,0.00068497,47023.0,47013.0,0.36071638]
[1641020366417,0.00040733,47020.0,47013.0,0.35084418]
[1641020366618,0.0541355,47016.0,47010.0,0.148904]
[1641020366822,0.053192,47016.0,47010.0,0.148904]
[1641020367016,0.052972,47016.0,47010.0,0.148904]
[1641020367216,0.052752,47016.0,47010.0,0.148904]
[1641020367416,0.052532,47016.0,47010.0,0.148904]
[1641020367616,0.052312,47016.0,47013.0,0.32773717]
[1641020367817,0.052092,47016.0,47013.0,0.32773717]
[1641020368018,0.051762,47016.0,47013.0,0.32773717]
[1641020368217,0.051652,47016.0,47013.0,0.32773717]
[1641020368473,0.051652,47016.0,46991.0,0.002]
[1641020368474,0.38080863,46996.0,46991.0,0.002]
[1641020368671,0.38080863,46996.0,46989.0,0.20639761]
[1641020368672,0.79989,46990.0,46989.0,0.00040797]
[1641020368868,0.79989,46990.0,46979.0,1.08573212]
[1641020368869,0.004297,46989.0,46979.0,1.08314009]
[1641020369069,0.94099829,46991.0,46979.0,1.08314009]
[1641020369270,0.94077829,46991.0,46980.0,0.00027387]
[1641020369476,0.84099829,46991.0,46982.0,0.1]
[1641020369770,0.15469171,46992.0,46991.0,0.84088829]
[1641020369970,0.15469171,46992.0,46991.0,1.52239258]
[1641020369971,0.15447171,46992.0,46991.0,1.52239258]
[1641020370174,0.15436171,46992.0,46991.0,1.52266645]
[1641020370374,0.15414171,46992.0,46991.0,1.52266645]
[1641020370570,0.16264171,46992.0,46991.0,1.85396368]
[1641020370771,0.16242171,46992.0,46991.0,1.85396368]
[1641020371069,0.16220171,46992.0,46991.0,1.85396368]
[1641020371271,0.16198171,46992.0,46991.0,1.85396368]
[1641020371471,0.16187171,46992.0,46991.0,1.85396368]
[1641020371670,0.16165171,46992.0,46991.0,1.18212046]
[1641020371871,0.21165171,46992.0,46991.0,0.84140246]
[1641020372324,0.21165171,46992.0,46991.0,1.18212046]
[1641020372524,0.21154171,46992.0,46991.0,1.18212046]
[1641020372724,0.21143171,46992.0,46991.0,1.18212046]
[1641020372925,0.21132171,46992.0,46991.0,1.18212046]
[1641020373326,0.48895571,46992.0,46991.0,0.84140246]
[1641020373526,0.21110171,46992.0,46991.0,0.84140246]
[1641020373728,0.31099171,46992.0,46991.0,0.84140246]
[1641020373927,0.31088171,46992.0,46991.0,0.84140246]
[1641020374128,0.00128653,46990.0,46989.0,0.00269013]
[1641020374330,0.00117653,46990.0,46981.0,0.00984924]
[1641020374532,0.00124674,46983.0,46981.0,0.00984924]
[1641020374832,0.00102674,46983.0,46981.0,0.00984924]
[1641020375032,0.00091674,46983.0,46981.0,0.00984924]
[1641020375431,0.15324,46986.0,46981.0,0.00984924]
[1641020375432,0.15350862,46986.0,46981.0,0.00984924]
[1641020375734,0.00107666,46983.0,46981.0,0.00984924]
[1641020376160,0.00085666,46983.0,46981.0,0.00984924]
[1641020376361,0.00115591,46983.0,46981.0,0.00011]
[1641020376662,0.00123982,46983.0,46981.0,0.00011]
[1641020376960,0.00123847,46978.0,46977.0,0.00044]
[1641020377367,0.053021,46980.0,46977.0,0.00044]
[1641020377761,0.00110902,46978.0,46977.0,0.00044]
[1641020378167,0.00110902,46978.0,46976.0,0.00011]
[1641020378168,1.13598902,46978.0,46976.0,0.00011]
[1641020378363,0.00122436,46977.0,46976.0,0.00011]
[1641020378863,0.22455,46978.0,46976.0,0.00011]
[1641020379063,0.24291353,46978.0,46976.0,0.00011]
[1641020379465,0.00635289,46977.0,46973.0,5.03e-06]
[1641020379727,0.053256,46975.0,46966.0,0.00011]
[1641020379928,0.053256,46975.0,46964.0,0.2979676]
[1641020379929,0.1,46975.0,46969.0,0.00011]
[1641020380126,0.1,46975.0,46963.0,0.24655579]
[1641020380327,0.00510109,46977.0,46968.0,0.00011]
[1641020380527,0.00510109,46977.0,46973.0,0.32474497]
[1641020380729,0.053236,46974.0,46973.0,0.32474497]
[1641020380927,0.053236,46974.0,46968.0,0.00011]
[1641020381726,0.00122614,46971.0,46968.0,0.00011]
[1641020381931,0.053248,46970.0,46961.0,0.3200066]
[1641020382431,0.053248,46970.0,46969.0,0.00011602]
[1641020383128,0.053248,46970.0,46969.0,0.29909879]
[1641020384383,0.1,46971.0,46969.0,0.29909879]
[1641020384783,0.05,46971.0,46969.0,0.29909879]
[1641020385388,0.00969989,46976.0,46970.0,0.440718]
[1641020385586,0.5,46988.0,46983.0,0.23817045]
[1641020385789,0.01794085,46989.0,46984.0,0.1]
[1641020385985,0.01794085,46989.0,46985.0,0.340718]
[1641020386586,0.01794085,46989.0,46987.0,0.42408575]
[1641020386786,0.01794085,46989.0,46988.0,0.340718]
[1641020386985,0.01794085,46989.0,46983.0,0.5275882]
[1641020387229,0.01794085,46989.0,46984.0,0.340718]
[1641020387631,0.01794085,46989.0,46983.0,0.5275882]
[1641020387829,0.01794085,46989.0,46983.0,0.23817045]
[1641020388028,0.03604289,46989.0,46984.0,0.27912652]
[1641020388228,0.03604289,46989.0,46984.0,0.61984452]
[1641020389831,0.04465289,46989.0,46986.0,0.28250206]
[1641020390030,0.04465289,46989.0,46987.0,0.330718]
[1641020390235,0.04465289,46989.0,46988.0,0.34069]
[1641020391066,0.02671204,46989.0,46988.0,0.34069]
[1641020392165,0.02671204,46989.0,46983.0,0.51925286]
[1641020392368,0.02671204,46989.0,46984.0,0.34069]
[1641020392769,0.02671204,46989.0,46984.0,0.34079243]
[1641020392966,0.0447761,46989.0,46985.0,0.30839636]
[1641020393167,0.0447761,46989.0,46988.0,1.38069]
[1641020393364,0.0447761,46989.0,46988.0,1.48069]
[1641020393564,0.0447761,46989.0,46988.0,0.45007045]
[1641020393765,0.0447761,46989.0,46988.0,0.6746753]
[1641020394066,0.0447761,46989.0,46988.0,0.34069]
[1641020394266,0.0447761,46989.0,46988.0,0.6269976]
[1641020394465,0.0447761,46989.0,46988.0,0.63173952]
[1641020394723,0.0447761,46989.0,46988.0,0.34069]
[1641020395023,0.0447761,46989.0,46988.0,0.62927462]
[1641020396030,0.02667406,46989.0,46988.0,0.62927462]
[1641020398978,0.02667406,46989.0,46988.0,0.34069]
[1641020399177,0.02667406,46989.0,46985.0,0.30962655]
[1641020399377,0.02667406,46989.0,46985.0,0.30839636]
[1641020400080,0.02667406,46989.0,46986.0,0.12312187]
[1641020400282,0.01806406,46989.0,46987.0,0.30018322]
[1641020400876,0.00482327,46990.0,46987.0,0.30018322]
[1641020401080,0.01343327,46990.0,46987.0,0.30018322]
[1641020401677,0.01343327,46990.0,46988.0,0.34069]
[1641020401877,0.01343327,46990.0,46989.0,0.29089687]
[1641020402080,0.01343327,46990.0,46989.0,0.63158687]
[1641020402319,0.01343327,46990.0,46989.0,0.34069]
[1641020402522,0.01343327,46990.0,46984.0,0.00010243]
[1641020404624,0.01343327,46990.0,46984.0,0.32901925]
[1641020406082,0.01343327,46990.0,46984.0,0.00010243]
[1641020406279,0.01343327,46990.0,46984.0,0.28284984]
[1641020406679,0.01343327,46990.0,46984.0,0.00010243]
[1641020406879,0.01343327,46990.0,46984.0,0.28136491]
[1641020407080,0.01343327,46990.0,46984.0,0.00010243]
[1641020408083,0.01806994,46989.0,46984.0,0.00010243]
[1641020408487,0.01806994,46989.0,46988.0,1.12069]
[1641020408684,0.01806994,46989.0,46988.0,1.51573492]
[1641020408882,0.01806994,46989.0,46988.0,0.83735718]
[1641020409182,0.02667994,46989.0,46988.0,0.67729916]
[1641020409385,0.02667994,46989.0,46988.0,0.78337584]
[1641020410726,0.02667994,46989.0,46988.0,0.68337584]
[1641020411525,0.02667994,46989.0,46988.0,2.05956884]
[1641020412526,0.0049402,46999.0,46992.0,1.27604171]
[1641020412727,0.0049402,46999.0,46996.0,0.34730229]
[1641020412926,0.0049402,46999.0,46997.0,0.49112822]
[1641020413126,0.0049402,46999.0,46998.0,0.29905481]
[1641020413568,0.0049402,46999.0,46998.0,0.82341376]
[1641020413769,0.0049402,46999.0,46998.0,1.16410376]
[1641020413970,0.0049402,46999.0,46998.0,1.62656083]
[1641020414374,0.02172966,47001.0,47000.0,1.38069]
[1641020414375,0.00166986,47001.0,47000.0,1.38069]
[1641020414571,0.00166986,47001.0,47000.0,0.34069]
[1641020414870,0.00166986,47001.0,47000.0,0.66690747]
[1641020415070,0.00204333,47004.0,47000.0,1.88441145]
[1641020415269,4.333e-05,47004.0,47003.0,1.46369]
[1641020415469,4.333e-05,47004.0,47003.0,1.516869]
[1641020415670,0.00011636,47004.0,47003.0,1.516869]
[1641020416071,0.00011636,47004.0,47003.0,0.393869]
[1641020416274,0.00095344,47009.0,47003.0,0.62192739]
[1641020416470,0.00095344,47009.0,47003.0,0.34069]
[1641020416669,7.303e-05,47008.0,47000.0,0.00607668]
[1641020416870,7.303e-05,47008.0,47001.0,0.34069]
[1641020417328,7.303e-05,47008.0,47000.0,0.00607668]
[1641020417528,0.05326903,47008.0,47000.0,0.00607668]
[1641020417727,0.69883574,47006.0,47000.0,0.00607668]
[1641020418135,0.71499636,47006.0,47000.0,0.00607668]
[1641020418329,0.69883574,47005.0,47000.0,0.00607668]
[1641020419128,0.01616062,47006.0,47000.0,0.00607668]
[1641020419531,0.71499636,47006.0,47000.0,0.00607668]
[1641020419732,0.71499636,47006.0,47000.0,0.00303834]
[1641020419930,0.71499636,47006.0,47003.0,0.00303834]
[1641020420132,0.69883574,47005.0,47003.0,0.00607668]
[1641020420984,0.01616062,47006.0,47003.0,0.00607668]
[1641020421180,0.81485625,47005.0,47003.0,0.00607668]
[1641020422683,1.51838704,47005.0,47003.0,0.00607668]
[1641020422884,1.10426,47004.0,47003.0,0.00607668]
[1641020423284,0.06426,47004.0,47003.0,0.00607668]
[1641020423885,1.32383925,47004.0,47003.0,0.00607668]
[1641020424089,1.20957925,47004.0,47003.0,0.00607668]
[1641020424931,1.20957925,47005.0,47003.0,0.00607668]
[1641020425329,1.20957925,47005.0,46996.0,0.29612118]
[1641020425529,1.20957925,47005.0,47001.0,0.00303834]
[1641020425729,0.81946314,47004.0,47001.0,0.00607668]
[1641020426529,0.70282835,47004.0,47001.0,0.00607668]
[1641020426733,0.01426,47003.0,47001.0,0.00607668]
[1641020427131,0.70401473,47004.0,47001.0,0.00607668]
[1641020427331,1.20959539,47002.0,47001.0,0.00607668]
[1641020427946,0.70237944,47002.0,47001.0,0.00607668]
[1641020429878,0.82545087,47004.0,47001.0,0.00607668]
[1641020429879,0.00600819,47004.0,47001.0,0.00607668]
[1641020430079,0.01426,47003.0,47001.0,0.00607668]
[1641020430479,0.05600819,47004.0,47001.0,0.00607668]
[1641020430681,0.70237944,47002.0,46997.0,7.303e-05]
[1641020430979,0.80237944,47002.0,47000.0,0.00303834]
[1641020431183,0.1,47002.0,47000.0,0.00303834]
[1641020431381,0.81944268,47003.0,47000.0,0.00303834]
[1641020431782,0.70137148,47001.0,47000.0,0.00303834]
[1641020432082,0.70137148,47001.0,47000.0,0.00311137]
[1641020432333,0.70737967,47004.0,47000.0,0.00311137]
[1641020435833,0.00600819,47004.0,47000.0,0.00311137]
[1641020436075,0.00600819,47004.0,47002.0,0.00303834]
[1641020436274,0.00600819,47004.0,47002.0,0.00607668]
[1641020437875,0.70737967,47004.0,47002.0,0.00607668]
[1641020438475,0.00600819,47004.0,47002.0,0.00607668]
[1641020439077,0.00600819,47004.0,47002.0,0.00107668]
[1641020441334,0.00600819,47004.0,47000.0,7.303e-05]
[1641020441534,0.00600819,47004.0,47002.0,0.00107668]
[1641020441734,0.70737967,47004.0,47002.0,0.00107668]
[1641020442735,0.80737967,47004.0,47002.0,0.00107668]
[1641020443137,0.01426,47003.0,47002.0,0.00107668]
[1641020443337,0.80737967,47004.0,47002.0,0.00107668]
[1641020443784,0.0532,47003.0,47002.0,0.00107668]
[1641020444183,0.75457148,47003.0,47002.0,0.00107668]
[1641020444383,0.70137148,47003.0,47002.0,0.00107668]
[1641020447756,0.70137148,47003.0,47002.0,1.09734159]
[1641020447757,0.69901148,47003.0,47002.0,1.09734159]
[1641020447953,0.83379356,47005.0,47003.0,1.38569]
[1641020447954,0.84814435,47005.0,47003.0,1.38569]
[1641020448154,0.84814435,47005.0,47004.0,0.34069]
[1641020448155,0.02870167,47005.0,47004.0,0.34069]
[1641020448453,0.00977948,47009.0,47004.0,0.34069]
[1641020448652,0.00977948,47009.0,47008.0,0.26026095]
[1641020448853,0.00977948,47009.0,47008.0,0.63440178]
[1641020449053,0.00987077,47009.0,47008.0,0.68758178]
[1641020449256,0.00987077,47009.0,47008.0,1.02827178]
[1641020450258,0.00987077,47009.0,47008.0,1.30793016]
[1641020450259,0.00014785,47009.0,47008.0,1.30793016]
[1641020452279,0.00014785,47009.0,47008.0,1.30293016]
[1641020453084,0.00014785,47009.0,47008.0,1.30301406]
[1641020453280,0.00496907,47009.0,47008.0,1.30301406]
[1641020453480,0.00496907,47009.0,47008.0,1.24983406]
[1641020454081,0.00496907,47009.0,47008.0,1.25091074]
[1641020462334,0.00496907,47009.0,47008.0,0.34185058]
[1641020462734,0.00496907,47009.0,47008.0,0.00116058]
[1641020463339,0.01922907,47009.0,47008.0,0.00116058]
[1641020463537,0.00496907,47009.0,47008.0,0.00116058]
[1641020463937,0.04639828,47010.0,47008.0,0.00116058]
[1641020464337,0.04639828,47010.0,47008.0,8.39e-05]
[1641020464539,0.01426,47009.0,47008.0,8.39e-05]
[1641020465339,0.04639828,47010.0,47008.0,8.39e-05]
[1641020466188,1.35186472,47009.0,47008.0,8.39e-05]
[1641020466486,1.30250895,47009.0,47008.0,8.39e-05]
[1641020466685,1.34929998,47009.0,47008.0,8.39e-05]
[1641020466887,2.6294075,47009.0,47008.0,8.39e-05]
[1641020467086,2.94057361,47009.0,47008.0,8.39e-05]
[1641020467484,2.8414705,47009.0,47008.0,8.39e-05]
[1641020467686,2.94147049,47009.0,47008.0,8.39e-05]
[1641020468285,2.53030439,47009.0,47008.0,8.39e-05]
[1641020468487,1.49234772,47009.0,47008.0,8.39e-05]
[1641020468686,1.39234772,47009.0,47008.0,8.39e-05]
[1641020469287,1.63298162,47009.0,47008.0,8.39e-05]
[1641020469587,1.6338785,47009.0,47008.0,8.39e-05]
[1641020469818,1.6338785,47009.0,47008.0,0.00116058]
[1641020470017,1.7338785,47009.0,47008.0,0.00116058]
[1641020470620,1.73592183,47009.0,47008.0,0.00116058]
[1641020471222,1.49528793,47009.0,47008.0,0.00116058]
[1641020471622,1.49733126,47009.0,47008.0,0.00116058]
[1641020472022,1.49733126,47009.0,47008.0,1.058e-05]
[1641020472523,0.00126448,47003.0,47002.0,0.00972277]
[1641020472721,1.15552447,47003.0,47002.0,0.00972277]
[1641020472926,1.20552447,47003.0,47002.0,0.00985058]
[1641020473123,1.35552447,47003.0,47002.0,0.00985058]
[1641020473323,2.88543482,47003.0,47002.0,0.00985058]
[1641020473599,2.9395497,47003.0,47002.0,0.00985058]
[1641020473999,1.04,47002.0,46992.0,0.15304171]
[1641020474197,0.00124309,46994.0,46992.0,0.15304171]
[1641020474498,0.01426,46993.0,46992.0,0.15304171]
[1641020474696,0.01515688,46993.0,46992.0,0.15304171]
[1641020475097,0.06837588,46993.0,46992.0,0.15304171]
[1641020475303,0.44967171,46993.0,46992.0,0.15304171]
[1641020475499,0.49967171,46993.0,46992.0,0.15304171]
[1641020475699,0.60177587,46993.0,46992.0,0.15304171]
[1641020476398,0.50177588,46993.0,46992.0,0.15304171]
[1641020476799,0.22137692,46993.0,46992.0,0.15304171]
[1641020477000,0.32209692,46993.0,46992.0,0.15304171]
[1641020477247,1.02788386,46993.0,46992.0,0.15304171]
[1641020477447,1.12788386,46993.0,46992.0,0.15304171]
[1641020477847,1.42485016,46993.0,46992.0,0.15304171]
[1641020478048,1.39458679,46993.0,46992.0,0.15304171]
[1641020478648,1.09851737,46993.0,46992.0,0.15304171]
[1641020478950,1.26408531,46993.0,46992.0,0.15304171]
[1641020479149,1.14360803,46993.0,46992.0,0.15304171]
[1641020479350,0.07911939,46993.0,46992.0,0.15304171]
[1641020479551,0.02590039,46993.0,46992.0,0.15304171]
[1641020479950,0.02794372,46993.0,46992.0,0.15304171]
[1641020480153,0.32199001,46993.0,46992.0,0.15304171]
[1641020480351,0.02923685,46993.0,46992.0,0.15304171]
[1641020480995,0.03013373,46993.0,46992.0,0.15304171]
[1641020481388,0.08334873,46993.0,46992.0,0.15304171]
[1641020481989,0.08539206,46993.0,46992.0,0.15304171]
[1641020482990,0.46829503,46993.0,46992.0,0.15304171]
[1641020483393,0.56829503,46993.0,46992.0,0.15304171]
[1641020483993,0.57033836,46993.0,46992.0,0.15304171]
[1641020484592,0.57033836,46993.0,46992.0,0.15313115]
[1641020485035,0.57238169,46993.0,46992.0,0.15313115]
[1641020486036,0.47442503,46993.0,46992.0,0.15313115]
[1641020487038,0.47532191,46993.0,46992.0,0.15313115]
[1641020488239,0.47621879,46993.0,46992.0,0.15313115]
[1641020489085,0.47711567,46993.0,46992.0,0.15313115]
[1641020489785,0.57701567,46993.0,46992.0,0.15313115]
[1641020490187,0.579059,46993.0,46992.0,0.15313115]
[1641020491187,0.58110233,46993.0,46992.0,0.15313115]
[1641020492343,1.62199921,46993.0,46992.0,0.14313115]
[1641020492542,0.58199921,46993.0,46992.0,0.14313115]
[1641020493347,0.28625115,46992.0,46981.0,0.00033]
[1641020493552,0.28625115,46992.0,46977.0,0.00044]
[1641020493553,0.23353523,46977.0,46974.0,0.00044]
[1641020493744,0.40339523,46977.0,46974.0,0.00011]
[1641020494043,0.40339523,46977.0,46973.0,0.00022]
[1641020494044,0.01426,46975.0,46973.0,0.00022]
[1641020494343,0.01426,46974.0,46973.0,0.00022]
[1641020494846,0.120765,46973.0,46971.0,0.00011]
[1641020495045,0.01426,46972.0,46971.0,0.00011]
[1641020495982,0.067513,46972.0,46971.0,0.00011]
[1641020496375,0.053253,46972.0,46971.0,0.00011]
[1641020496776,0.053253,46972.0,46971.0,0.43586027]
[1641020497079,0.05529633,46972.0,46971.0,0.43586027]
[1641020497577,0.05529633,46972.0,46971.0,0.00011]
[1641020498180,0.07045321,46972.0,46971.0,0.00011]
[1641020499280,0.34791805,46972.0,46971.0,0.00011]
[1641020499479,1.04,46971.0,46969.0,0.00150012]
[1641020499737,0.067508,46970.0,46969.0,0.00150012]
[1641020499935,0.117508,46970.0,46969.0,0.00150012]
[1641020500337,0.167508,46970.0,46969.0,0.00150012]
[1641020501141,1.207508,46970.0,46969.0,0.00062012]
[1641020501342,1.20966737,46970.0,46968.0,0.00015012]
[1641020501640,1.12600905,46969.0,46968.0,0.00015012]
[1641020501837,1.17600905,46969.0,46968.0,0.00015012]
[1641020502036,1.32600905,46969.0,46967.0,0.00033]
[1641020502240,1.04,46967.0,46966.0,0.00011]
[1641020502440,1.15877286,46967.0,46966.0,0.00011]
[1641020502637,0.26877286,46967.0,46965.0,0.00033]
[1641020502942,1.05426,46966.0,46965.0,0.00033]
[1641020503138,1.05426,46965.0,46963.0,0.00033]
[1641020503343,1.05426,46965.0,46961.0,0.00178]
[1641020503344,1.05426,46962.0,46961.0,0.00178]
[1641020503592,0.16550761,46962.0,46961.0,0.00145]
[1641020503790,0.21550761,46962.0,46961.0,0.00145]
[1641020504391,0.11550761,46962.0,46961.0,0.00145]
[1641020504893,0.12033361,46962.0,46961.0,0.00145]
[1641020505092,0.60033361,46962.0,46961.0,0.00145]
[1641020505293,0.12033361,46962.0,46961.0,0.00145]
[1641020505592,0.12033361,46962.0,46955.0,0.00055]
[1641020505593,0.4980248,46962.0,46955.0,0.00055]
[1641020505791,1.05426,46961.0,46955.0,0.00055]
[1641020506192,1.15426,46961.0,46955.0,0.00055]
[1641020506393,0.11426,46961.0,46955.0,0.00055]
[1641020507246,0.01426,46961.0,46955.0,0.00055]
[1641020507450,0.01426,46961.0,46958.0,0.31197002]
[1641020507644,0.004826,46962.0,46958.0,0.31197002]
[1641020508043,0.004826,46962.0,46958.0,0.34552275]
[1641020508645,0.004826,46962.0,46958.0,0.00044]
[1641020508845,0.00611191,46962.0,46958.0,0.00044]
[1641020509046,0.00729932,46962.0,46958.0,0.00044]
[1641020509848,1.05426,46961.0,46958.0,0.00044]
[1641020510051,1.15426,46961.0,46958.0,0.00044]
[1641020510447,1.05426,46961.0,46958.0,0.00044]
[1641020510648,0.11426,46961.0,46958.0,0.00044]
[1641020510847,0.01426,46961.0,46958.0,0.00044]
[1641020511989,0.05729932,46962.0,46958.0,0.00044]
[1641020512193,0.00601341,46962.0,46960.0,0.26685969]
[1641020512594,0.00601341,46962.0,46960.0,0.00033]
[1641020513893,0.00096905,46961.0,46960.0,0.00033]
[1641020515737,0.00301238,46961.0,46960.0,0.00033]
[1641020515937,0.00404569,46961.0,46960.0,0.00033]
[1641020516436,0.00404569,46961.0,46960.0,0.26111473]
[1641020516839,0.00615328,46961.0,46960.0,0.26111473]
[1641020517044,0.00712233,46961.0,46960.0,0.26111473]
[1641020517440,0.00712233,46961.0,46960.0,0.00033]
[1641020517842,0.00801921,46961.0,46960.0,0.00033]
[1641020518044,0.00905252,46961.0,46960.0,0.00033]
[1641020518497,0.00905252,46961.0,46960.0,0.32262434]
[1641020518892,0.01109585,46961.0,46960.0,0.32262434]
[1641020519091,0.01212916,46961.0,46960.0,0.32262434]
[1641020519695,0.01008583,46961.0,46960.0,0.32262434]
[1641020520094,0.01111914,46961.0,46960.0,0.32262434]
[1641020520692,0.06437114,46961.0,46960.0,0.32058101]
[1641020521196,0.06540445,46961.0,46959.0,0.00044]
[1641020522235,0.06643776,46961.0,46959.0,0.00044]
[1641020522635,0.06643776,46961.0,46960.0,0.32401042]
[1641020523036,0.06650202,46961.0,46960.0,0.32401042]
[1641020523237,0.06747107,46961.0,46960.0,0.32401042]
[1641020523536,0.06747107,46961.0,46960.0,0.31901042]
[1641020524138,0.06844012,46961.0,46960.0,0.31901042]
[1641020525142,0.06844012,46961.0,46960.0,0.31894616]